fUST/lending_fUST_20240111
["ID","MTS","AMOUNT","RATE_DAILY","PERIOD"]
[311161178,1704947448341,-9680.85,0.00030684,2]
[311161179,1704947448350,-502.86019974,0.00030684,2]
[311161180,1704947448359,-500.0,0.00030684,2]
[311161181,1704947448367,-500.0,0.00030684,2]
[311161182,1704947448377,-509.19232355,0.00030684,2]
[311161183,1704947448386,-500.0,0.00030684,2]
[311161184,1704947448394,-1103.63,0.00030684,2]
[311161185,1704947448403,-509.69535594,0.00030684,2]
[311161186,1704947448412,-500.0,0.00030684,2]
[311161187,1704947448421,-500.0,0.00030684,2]
[311161188,1704947448430,-250.34901433,0.00030684,2]
[311161189,1704947448545,-249.65098567,0.00030684,2]
[311161190,1704947448554,-500.0,0.00030684,2]
[311161191,1704947448563,-500.0,0.00030684,2]
[311161192,1704947448573,-502.35426296,0.00030684,2]
[311161193,1704947448582,-647.95,0.00030684,2]
[311161194,1704947448591,-166.98600418,0.00030684,2]
[311161195,1704947448600,-500.0,0.00030684,2]
[311161196,1704947448610,-500.0,0.00030684,2]
[311161197,1704947448619,-626.59,0.00030684,2]
[311161198,1704947448629,-5869.45,0.00030684,2]
[311161199,1704947448638,-139.86827007,0.00030684,2]
[311161200,1704947448651,-360.13172993,0.00030684,2]
[311161201,1704947448660,-3514.61,0.00030684,2]
[311161202,1704947448669,-503.92943342,0.00030684,2]
[311161203,1704947448678,-6467.16,0.00030684,2]
[311161204,1704947448687,-500.0,0.00030684,2]
[311161205,1704947448696,-500.0,0.00030684,2]
[311161206,1704947448706,-503.20019303,0.00030684,2]
[311161207,1704947448715,-500.0,0.00030684,2]
[311161208,1704947448724,-15325.6,0.00030684,2]
[311161209,1704947448733,-500.0,0.00030684,2]
[311161210,1704947448750,-2356.85,0.00030684,2]
[311161211,1704947448763,-500.0,0.00030684,2]
[311161212,1704947448773,-500.0,0.00030684,2]
[311161213,1704947448783,-500.0,0.00030684,2]
[311161214,1704947448793,-500.0,0.00030684,2]
[311161215,1704947448802,-500.0,0.00030684,2]
[311161216,1704947448812,-740.43,0.00030684,2]
[311161217,1704947448822,-500.0,0.00030684,2]
[311161218,1704947448831,-1627.99,0.00030684,2]
[311161219,1704947448841,-1684.83,0.00030684,2]
[311161220,1704947448850,-538.97228615,0.00030684,2]
[311161221,1704947448860,-500.0,0.00030684,2]
[311161222,1704947448870,-192.014833,0.00030684,2]
[311161223,1704947448879,-192.014833,0.00030684,2]
[311161224,1704947448889,-5518.496776,0.00030684,2]
[311161225,1704947448899,-5518.496776,0.00030684,2]
[311161226,1704947448908,-1261.091457,0.00030684,2]
[311161227,1704947448918,-1261.091457,0.00030684,2]
[311161228,1704947448928,-151.0,0.00030684,2]
[311161229,1704947448938,-5000.0,0.00030685,7]
[311161230,1704947448948,-1500.0,0.000307,2]
[311161231,1704947448957,-153.73462599,0.00030703,7]
[311161232,1704947448967,-151.0,0.0003076,2]
[311161233,1704947448976,-153.73462599,0.00030809,7]
[311161234,1704947448985,-153.73462599,0.00030817,7]
[311161235,1704947448995,-153.0,0.00030849,2]
[311161236,1704947449005,-380.79199801,0.00030884,2]
[311161237,1704947449014,-487.89062464,0.00030884,2]
[311161238,1704947449024,-1131.28008736,0.00030884,2]
[311161239,1704947449034,-272.6637528,0.00030884,2]
[311161240,1704947449043,-1368.94650824,0.00030884,2]
[311161241,1704947449053,-1000.0,0.00030884,7]
[311161242,1704947449062,-1000.0,0.00030884,7]
[311161243,1704947449071,-911.51843614,0.00030884,2]
[311161244,1704947449081,-989.05934364,0.00030884,2]
[311161245,1704947449090,-749.45296718,0.00030884,2]
[311161246,1704947449101,-163.19657057,0.00030884,2]
[311161247,1704947449110,-153.0,0.00030904,2]
[311161248,1704947449120,-153.0,0.00030904,2]
[311161249,1704947449130,-153.0,0.00030904,2]
[311161250,1704947449139,-153.0,0.00030904,2]
[311161251,1704947449150,-153.0,0.00030904,2]
[311161252,1704947449159,-358.8499845,0.00030904,2]
[311161253,1704947449169,-500.0,0.00030958,2]
[311161254,1704947449180,-500.0,0.00030958,2]
[311161255,1704947449190,-500.0,0.00030958,2]
[311161256,1704947449199,-500.0,0.00030958,2]
[311161257,1704947449209,-500.0,0.00030958,2]
[311161258,1704947449218,-500.0,0.00030958,2]
[311161259,1704947449227,-500.0,0.00030958,2]
[311161260,1704947449237,-500.0,0.00030958,2]
[311161261,1704947449246,-500.0,0.00030958,2]
[311161262,1704947449256,-500.0,0.00030958,2]
[311161263,1704947449265,-502.14369668,0.00030958,2]
[311161264,1704947449274,-499.32168742,0.00030958,2]
[311161265,1704947449284,-500.0,0.00030958,2]
[311161266,1704947449293,-500.0,0.00030958,2]
[311161267,1704947449302,-500.0,0.00030958,2]
[311161268,1704947449312,-505.70056427,0.00030958,2]
[311161269,1704947449321,-500.0,0.00030958,2]
[311161270,1704947449330,-502.28601672,0.00030958,2]
[311161271,1704947449339,-500.0,0.00030958,2]
[311161272,1704947449349,-500.0,0.00030958,2]
[311161273,1704947449358,-500.0,0.00030958,2]
[311161274,1704947449367,-500.0,0.00030958,2]
[311161275,1704947449376,-500.0,0.00030958,2]
[311161276,1704947449385,-500.0,0.00030958,2]
[311161277,1704947449394,-758.66,0.00030958,2]
[311161278,1704947449404,-500.0,0.00030958,2]
[311161279,1704947449413,-355.00540595,0.00030958,2]
[311161280,1704947449423,-500.0,0.00030958,2]
[311161281,1704947449531,-500.0,0.00030958,2]
[311161282,1704947449541,-500.0,0.00030958,2]
[311161283,1704947449552,-500.0,0.00030958,2]
[311161284,1704947449562,-500.0,0.00030958,2]
[311161285,1704947449571,-500.0,0.00030958,2]
[311161286,1704947449581,-500.0,0.00030958,2]
[311161287,1704947449590,-500.0,0.00030958,2]
[311161288,1704947449599,-1768.78,0.00030958,2]
[311161289,1704947449609,-500.0,0.00030958,2]
[311161290,1704947449618,-500.0,0.00030958,2]
[311161291,1704947449628,-150.0,0.00030958,2]
[311161292,1704947449637,-450.90133787,0.00030958,2]
[311161293,1704947449646,-500.0,0.00030958,2]
[311161294,1704947449656,-618.92361801,0.00030958,2]
[311161295,1704947449666,-599.08,0.00030958,2]
[311161296,1704947449675,-500.0,0.00030958,2]
[311161297,1704947449684,-500.0,0.00030958,2]
[311161298,1704947449693,-150.88778826,0.00030958,2]
[311161299,1704947449702,-504.98482417,0.00030958,2]
[311161300,1704947449714,-500.0,0.00030958,2]
[311161301,1704947449723,-500.0,0.00030958,2]
[311161302,1704947449733,-500.0,0.00030958,2]
[311161303,1704947449742,-500.0,0.00030958,2]
[311161304,1704947449751,-500.0,0.00030958,2]
[311161305,1704947449760,-504.04,0.00030958,2]
[311161306,1704947449769,-500.0,0.00030958,2]
[311161307,1704947449778,-500.0,0.00030958,2]
[311161308,1704947449788,-500.0,0.00030958,2]
[311161309,1704947449798,-500.0,0.00030958,2]
[311161310,1704947449806,-500.0,0.00030958,2]
[311161311,1704947449815,-511.47851661,0.00030958,2]
[311161312,1704947449825,-597.46,0.00030958,2]
[311161313,1704947449834,-500.0,0.00030958,2]
[311161314,1704947449844,-500.0,0.00030958,2]
[311161315,1704947449853,-500.0,0.00030958,2]
[311161316,1704947449862,-702.12,0.00030958,2]
[311161317,1704947449872,-500.0,0.00030958,2]
[311161318,1704947449881,-500.0,0.00030958,2]
[311161319,1704947449890,-314.75573249,0.00030958,2]
[311161320,1704947449899,-500.0,0.00030958,2]
[311161321,1704947449910,-500.0,0.00030958,2]
[311161322,1704947449919,-500.0,0.00030958,2]
[311161323,1704947449928,-500.0,0.00030958,2]
[311161324,1704947449938,-533.22,0.00030958,2]
[311161325,1704947449948,-500.0,0.00030958,2]
[311161326,1704947449957,-493.32760394,0.00030958,2]
[311161327,1704947449967,-500.0,0.00030958,2]
[311161328,1704947449976,-500.0,0.00030958,2]
[311161329,1704947449985,-500.0,0.00030958,2]
[311161330,1704947449994,-500.0,0.00030958,2]
[311161331,1704947450004,-1267.6,0.00030958,2]
[311161332,1704947450013,-504.41523224,0.00030958,2]
[311161333,1704947450022,-3159.63,0.00030958,2]
[311161334,1704947450031,-497.30825784,0.00030958,2]
[311161335,1704947450040,-705.7,0.00030958,2]
[311161336,1704947450050,-500.0,0.00030958,2]
[311161337,1704947450059,-500.0,0.00030958,2]
[311161338,1704947450068,-1009.22,0.00030958,2]
[311161339,1704947450077,-500.0,0.00030958,2]
[311161340,1704947450087,-500.0,0.00030958,2]
[311161341,1704947450096,-195.92341211,0.00030958,2]
[311161342,1704947450105,-326.98782357,0.00030958,2]
[311161343,1704947450114,-998.41,0.00030958,2]
[311161344,1704947450124,-500.0,0.00030958,2]
[311161345,1704947450133,-500.0,0.00030958,2]
[311161346,1704947450142,-557.43,0.00030958,2]
[311161347,1704947450152,-500.0,0.00030958,2]
[311161348,1704947450161,-683.46,0.00030958,2]
[311161349,1704947450170,-500.0,0.00030958,2]
[311161350,1704947450179,-502.21,0.00030958,2]
[311161351,1704947450188,-991.37,0.00030958,2]
[311161352,1704947450197,-897.86,0.00030958,2]
[311161353,1704947450207,-500.0,0.00030958,2]
[311161354,1704947450216,-500.0,0.00030958,2]
[311161355,1704947450226,-2074.55,0.00030958,2]
[311161356,1704947450235,-500.0,0.00030958,2]
[311161357,1704947450244,-500.0,0.00030958,2]
[311161358,1704947450253,-850.7,0.00030958,2]
[311161359,1704947450263,-500.0,0.00030958,2]
[311161360,1704947450272,-500.0,0.00030958,2]
[311161361,1704947450281,-235.71792542,0.00030958,2]
[311161362,1704947450291,-9680.85,0.00030958,2]
[311161363,1704947450300,-500.0,0.00030958,2]
[311161364,1704947450310,-500.0,0.00030958,2]
[311161365,1704947450319,-500.0,0.00030958,2]
[311161366,1704947450328,-1103.63,0.00030958,2]
[311161367,1704947450337,-500.0,0.00030958,2]
[311161368,1704947450346,-500.0,0.00030958,2]
[311161369,1704947450356,-500.0,0.00030958,2]
[311161370,1704947450366,-418.95309341,0.00030958,2]
[311161371,1704947450375,-500.0,0.00030958,2]
[311161372,1704947450386,-647.95,0.00030958,2]
[311161373,1704947450396,-500.0,0.00030958,2]
[311161374,1704947450405,-500.0,0.00030958,2]
[311161375,1704947450415,-626.59,0.00030958,2]
[311161376,1704947450424,-5869.45,0.00030958,2]
[311161377,1704947450434,-500.0,0.00030958,2]
[311161378,1704947450443,-3514.61,0.00030958,2]
[311161379,1704947450453,-6467.16,0.00030958,2]
[311161380,1704947450463,-195.67832151,0.00030958,2]
[311161381,1704947450472,-500.0,0.00030958,2]
[311161382,1704947450482,-500.0,0.00030958,2]
[311161383,1704947450492,-15325.6,0.00030958,2]
[311161384,1704947450501,-500.0,0.00030958,2]
[311161385,1704947450510,-2356.85,0.00030958,2]
[311161386,1704947450519,-500.0,0.00030958,2]
[311161387,1704947450529,-500.0,0.00030958,2]
[311161388,1704947450538,-500.0,0.00030958,2]
[311161389,1704947450547,-500.0,0.00030958,2]
[311161390,1704947450557,-500.0,0.00030958,2]
[311161391,1704947450566,-740.43,0.00030958,2]
[311161392,1704947450576,-500.0,0.00030958,2]
[311161393,1704947450586,-1627.99,0.00030958,2]
[311161394,1704947450595,-1684.83,0.00030958,2]
[311161395,1704947450604,-506.26562058,0.00030958,2]
[311161396,1704947450613,-153.0,0.00030959,2]
[311161397,1704947450622,-1368.0,0.00030978,22]
[311161398,1704947450631,-500.0,0.00030986,2]
[311161399,1704947450640,-500.0,0.00030986,2]
[311161400,1704947450649,-500.0,0.00030986,2]
[311161401,1704947450659,-500.0,0.00030986,2]
[311161402,1704947450669,-620.18748071,0.00030986,2]
[311161403,1704947450678,-500.0,0.00030986,2]
[311161404,1704947450688,-500.0,0.00030986,2]
[311161405,1704947450698,-500.0,0.00030986,2]
[311161406,1704947450707,-500.0,0.00030986,2]
[311161407,1704947450716,-500.0,0.00030986,2]
[311161408,1704947450726,-500.0,0.00030986,2]
[311161409,1704947450736,-280.64911559,0.00030986,2]
[311161410,1704947450745,-629.80045447,0.00030986,2]
[311161411,1704947450755,-500.0,0.00030986,2]
[311161412,1704947450765,-500.0,0.00030986,2]
[311161413,1704947450774,-500.0,0.00030986,2]
[311161414,1704947450783,-500.0,0.00030986,2]
[311161415,1704947450792,-500.0,0.00030986,2]
[311161416,1704947450802,-500.0,0.00030986,2]
[311161417,1704947450813,-461.55823494,0.00030986,2]
[311161418,1704947450822,-297.81002865,0.00030986,2]
[311161419,1704947450832,-500.0,0.00030986,2]
[311161420,1704947450841,-500.0,0.00030986,2]
[311161421,1704947450850,-500.0,0.00030986,2]
[311161422,1704947450860,-500.0,0.00030986,2]
[311161423,1704947450870,-500.0,0.00030986,2]
[311161424,1704947450879,-500.0,0.00030986,2]
[311161425,1704947450889,-500.0,0.00030986,2]
[311161426,1704947450898,-500.0,0.00030986,2]
[311161427,1704947450907,-281.99,0.00030987,2]
[311161428,1704947450916,-281.99,0.00030987,2]
[311161429,1704947450925,-281.99,0.00030987,2]
[311161430,1704947451006,-281.99,0.00030987,2]
[311161431,1704947451015,-281.99,0.00030987,2]
[311161432,1704947451025,-281.99,0.00030987,2]
[311161433,1704947451034,-281.99,0.00030987,2]
[311161434,1704947451043,-281.99,0.00030987,2]
[311161435,1704947451052,-153.73462599,0.00030988,7]
[311161436,1704947451061,-300.0,0.00030989,2]
[311161437,1704947451070,-153.89428806,0.00030997,2]
[311161438,1704947451079,-476.22449285,0.00030999,4]
[311161439,1704947451089,-426.2336021,0.00030999,4]
[311161440,1704947451100,-370.97183162,0.00030999,4]
[311161441,1704947451110,-500.0,0.00030999,4]
[311161442,1704947451119,-500.0,0.00030999,4]
[311161443,1704947451128,-500.0,0.00030999,4]
[311161444,1704947451137,-500.0,0.00030999,4]
[311161445,1704947451147,-337.9120652,0.00030999,4]
[311161446,1704947451156,-500.0,0.00030999,4]
[311161447,1704947451165,-500.0,0.00030999,4]
[311161448,1704947451174,-647.93032513,0.00030999,4]
[311161449,1704947451184,-268.6869823,0.00030999,4]
[311161450,1704947451194,-419.55359402,0.00030999,4]
[311161451,1704947451203,-500.0,0.00030999,4]
[311161452,1704947451212,-158605.79487985,0.00031,2]
[311161453,1704947451221,-4217.17813863,0.00031,2]
[311161454,1704947451230,-96855.26836877,0.00031,4]
[311161455,1704947451239,-220389.52108647,0.00031,7]
[311161456,1704947451255,-52235.4468188,0.00031,7]
[311161457,1704947451341,-516.850155,0.00031,7]
[311161458,1704947451471,-3509.76257978,0.00029141,5]
[311161459,1704947451516,-724.88835279,0.00029141,5]
[311161460,1704947451527,-350.98489009,0.00029141,5]
[311161464,1704947632248,4971.64117844,0.0003,30]
[311161465,1704948155769,-12000.0,0.00012659,2]
[311161466,1704948155850,-12000.0,0.00012659,2]
[311161467,1704948155967,-900.0,0.00012659,2]
[311161471,1704948495282,1619.11792201,0.00013524,5]
[311161472,1704948535519,886.210094,0.00013524,5]
[311161535,1704948632095,-521.18657264,0.00013498,2]
[311161537,1704948632105,-7945.04739538,0.00013499,2]
[311161539,1704948632114,-525.71054623,0.00013499,2]
[311161541,1704948632124,-198.86702102,0.00013499,2]
[311161543,1704948632133,-451.81472846,0.00013499,2]
[311161545,1704948632141,-466.77120588,0.00013499,2]
[311161547,1704948632151,-1466.31228556,0.00013499,2]
[311161548,1704948632160,-1291.19265067,0.00013499,2]
[311161550,1704948632169,-947.80013116,0.000135,2]
[311161552,1704948632178,-554.2709692,0.000135,2]
[311161554,1704948632187,-36895.86463632,0.000135,2]
[311161555,1704948632196,-20836.46606025,0.00013501,2]
[311161557,1704948632205,-20865.20196494,0.00013501,2]
[311161559,1704948632215,-964.75498104,0.00013501,2]
[311161561,1704948632225,-5824.12233106,0.00013502,2]
[311161596,1704948639063,-1989.87267074,0.00013498,2]
[311161598,1704948639072,-14005.42249688,0.00013502,2]
[311161600,1704948639082,-759.01187369,0.00013502,2]
[311161602,1704948639091,-509.10030575,0.00013502,2]
[311161604,1704948639100,-643.07386759,0.00013502,2]
[311161606,1704948639109,-560.56224867,0.00013503,2]
[311161608,1704948639118,-260.63257169,0.00013503,2]
[311161610,1704948639127,-587.15396194,0.00013503,2]
[311161612,1704948639137,-2927.79076094,0.00013503,2]
[311161614,1704948639146,-155.0294556,0.00013503,2]
[311161616,1704948639155,-242.63833742,0.00013503,2]
[311161618,1704948639164,-308.08708758,0.00013505,2]
[311161620,1704948639173,-593.96547105,0.00013505,2]
[311161622,1704948639181,-115201.6844592,0.00013506,2]
[311161624,1704948639193,-155586.16952896,0.00013506,2]
[311161626,1704948639202,-157.08092043,0.00013524,2]
[311161628,1704948639211,-172.62642446,0.00013545,2]
[311161630,1704948639220,-469.71701685,0.00013657,2]
[311161632,1704948639229,-322.83363774,0.00013666,2]
[311161634,1704948639239,-245.77715097,0.00013675,2]
[311161636,1704948639247,-1239.58974316,0.00013681,2]
[311161638,1704948639256,-273.4039653,0.00013699,2]
[311161640,1704948639265,-2203.8396405,0.00013699,2]
[311161642,1704948639274,-2294.40332973,0.00015518,2]
[311161644,1704948639283,-780.37469095,0.00015999,2]
[311161646,1704948639292,-223289.51168182,0.00016,2]
[311161648,1704948639301,-272.00985266,0.000165,2]
[311161649,1704948639310,-872.72571525,0.00017235,2]
[311161650,1704948639319,-246.10686283,0.000178,2]
[311161651,1704948639328,-10503.19627673,0.00017898,2]
[311161652,1704948639337,-1578.97802722,0.00019,2]
[311161653,1704948639345,-171.737941,0.00019178,2]
[311161654,1704948639355,-165.830005,0.00019178,2]
[311161655,1704948639363,-1112.22182837,0.000195,2]
[311161656,1704948639373,-8462.06221231,0.000199,2]
[311161657,1704948639382,-155.0,0.0002,2]
[311161658,1704948639391,-853.72221584,0.0002,2]
[311161659,1704948639400,-155.0,0.0002,2]
[311161660,1704948639409,-236.97375297,0.0002,2]
[311161661,1704948639418,-677.0708176,0.0002,2]
[311161662,1704948639427,-155.0,0.0002,2]
[311161663,1704948639437,-266.37190097,0.0002,2]
[311161664,1704948639447,-569.37401545,0.0002,2]
[311161666,1704948639456,-1195.27282006,0.0002,2]
[311161668,1704948639465,-292.87321984,0.0002,4]
[311161670,1704948639474,-309.93671544,0.0002,2]
[311161672,1704948639484,-326.7917286,0.00021,2]
[311161674,1704948639493,-166.666666,0.00021918,2]
[311161676,1704948639503,-172.62642446,0.00021928,2]
[311161678,1704948639514,-4918.87947459,0.00022,2]
[311161679,1704948639523,-156.88951629,0.00022,2]
[311161680,1704948639532,-3935.17481612,0.00022,2]
[311161681,1704948639542,-937.820031,0.00022,4]
[311161682,1704948639551,-166.666666,0.00022431,2]
[311161684,1704948639560,-166.666666,0.00022944,2]
[311161686,1704948639569,-9923.17263833,0.00023,2]
[311161687,1704948639579,-2093.45221107,0.00023,2]
[311161688,1704948639588,-500.0,0.00023288,2]
[311161689,1704948639597,-500.0,0.00023288,2]
[311161690,1704948639607,-500.0,0.00023288,2]
[311161691,1704948639616,-500.0,0.00023288,2]
[311161692,1704948639626,-620.18748071,0.00023288,2]
[311161693,1704948639635,-500.0,0.00023288,2]
[311161694,1704948639644,-500.0,0.00023288,2]
[311161695,1704948639654,-500.0,0.00023288,2]
[311161696,1704948639663,-500.0,0.00023288,2]
[311161697,1704948639673,-500.0,0.00023288,2]
[311161698,1704948639682,-500.0,0.00023288,2]
[311161699,1704948639691,-500.0,0.00023288,2]
[311161700,1704948639700,-629.80045447,0.00023288,2]
[311161701,1704948639709,-280.64911559,0.00023288,2]
[311161702,1704948639719,-467.70891735,0.00023288,2]
[311161703,1704948639729,-500.0,0.00023288,2]
[311161704,1704948639739,-500.0,0.00023288,2]
[311161705,1704948639749,-500.0,0.00023288,2]
[311161706,1704948639759,-500.0,0.00023288,2]
[311161707,1704948639770,-500.0,0.00023288,2]
[311161708,1704948639779,-500.0,0.00023288,2]
[311161709,1704948639788,-500.0,0.00023288,2]
[311161710,1704948639799,-500.0,0.00023288,2]
[311161711,1704948639808,-297.81002865,0.00023288,2]
[311161712,1704948639818,-500.0,0.00023288,2]
[311161713,1704948639827,-500.0,0.00023288,2]
[311161714,1704948639842,-500.0,0.00023288,2]
[311161715,1704948639856,-500.0,0.00023288,2]
[311161716,1704948639869,-500.0,0.00023288,2]
[311161717,1704948639883,-500.0,0.00023288,2]
[311161718,1704948639894,-493.84931759,0.00023288,2]
[311161719,1704948639904,-155.04687018,0.00023288,2]
[311161720,1704948639917,-166.666666,0.00023456,2]
[311161721,1704948639928,-166.666666,0.00023969,2]
[311161722,1704948639942,-497.12734932,0.0002398,5]
[311161723,1704948639955,-614.12133667,0.00024,2]
[311161724,1704948639969,-2293.60196635,0.00024,2]
[311161725,1704948639981,-166.666666,0.00024482,2]
[311161726,1704948639995,-687.75702701,0.000247,2]
[311161727,1704948640008,-244.52705143,0.00025,2]
[311161728,1704948640018,-4711.91259146,0.00025,2]
[311161729,1704948640030,-677.62834989,0.00025,2]
[311161730,1704948640043,-3000.0,0.00025,2]
[311161731,1704948640055,-200.0,0.00025479,2]
[311161732,1704948640066,-525.99300196,0.00026,2]
[311161733,1704948640079,-620.02554212,0.000264,2]
[311161734,1704948640091,-733.338016,0.00027,2]
[311161735,1704948640103,-500.0,0.00027397,2]
[311161736,1704948640115,-155.0,0.00027397,2]
[311161738,1704948640125,-500.0,0.00027534,2]
[311161741,1704948640135,-647.23326909,0.00027671,2]
[311161742,1704948640149,-620.00127711,0.0002772,2]
[311161743,1704948640161,-9100.04106185,0.000285,4]
[311161744,1704948640174,-155.0,0.00028767,2]
[311161745,1704948640185,-5395.54785307,0.000289,2]
[311161746,1704948640196,-155.0,0.00029,2]
[311161747,1704948640207,-3807.00559693,0.00029,2]
[311161748,1704948640220,-620.00006386,0.00029106,2]
[311161749,1704948640233,-3483.66729802,0.0002914,2]
[311161750,1704948640245,-363.9579915,0.0002914,2]
[311161751,1704948640257,-414.36417734,0.00029141,5]
[311161752,1704948640270,-309.94425043,0.00029141,2]
[311161753,1704948640283,-155.0,0.00029141,7]
[311161754,1704948640296,-1037.63044657,0.00029141,2]
[311161755,1704948640307,-157.18870053,0.00029141,2]
[311161756,1704948640317,-4771.78933245,0.00029141,2]
[311161757,1704948640327,-155.05361468,0.00029141,2]
[311161758,1704948640337,-309.82086831,0.00029141,2]
[311161759,1704948640348,-156.43500893,0.00029141,2]
[311161760,1704948640360,-155.21039392,0.00029141,2]
[311161761,1704948640372,-370.97183162,0.00029162,4]
[311161762,1704948640382,-476.22449285,0.00029162,4]
[311161763,1704948640395,-426.2336021,0.00029162,4]
[311161764,1704948640406,-268.6869823,0.00029162,4]
[311161765,1704948640416,-500.0,0.00029162,4]
[311161766,1704948640426,-500.0,0.00029162,4]
[311161767,1704948640437,-337.9120652,0.00029162,4]
[311161768,1704948640447,-500.0,0.00029162,4]
[311161769,1704948640461,-647.93032513,0.00029162,4]
[311161770,1704948640471,-500.0,0.00029162,4]
[311161771,1704948640482,-500.0,0.00029162,4]
[311161772,1704948640493,-419.55359402,0.00029162,4]
[311161773,1704948640504,-500.0,0.00029162,4]
[311161774,1704948640514,-500.0,0.00029162,4]
[311161775,1704948640525,-32506.56271152,0.00029164,3]
[311161776,1704948640536,-5069.29699281,0.00029173,3]
[311161777,1704948640554,-8091.40462772,0.00029173,3]
[311161778,1704948640565,-2111.44489516,0.00029194,3]
[311161779,1704948640578,-3993.46507403,0.00029194,3]
[311161780,1704948640589,-153.0,0.00029356,2]
[311161781,1704948640600,-153.0,0.00029356,2]
[311161782,1704948640610,-153.0,0.00029356,2]
[311161783,1704948640621,-153.0,0.00029356,2]
[311161784,1704948640632,-154.2205661,0.00029356,2]
[311161785,1704948640642,-155.0,0.0003,2]
[311161786,1704948640654,-282.67247261,0.0003,3]
[311161787,1704948640664,-1865.18032884,0.0003,4]
[311161788,1704948640675,-236.54101658,0.0003,7]
[311161789,1704948640685,-639.80669723,0.0003,4]
[311161790,1704948640696,-6975.26133049,0.0003,4]
[311161791,1704948640707,-463.46661998,0.0003,4]
[311161792,1704948640718,-686.8051383,0.0003,4]
[311161793,1704948640729,-15040.88068289,0.0003,4]
[311161794,1704948640740,-1200.0,0.0003,4]
[311161795,1704948640750,-1025.8328647,0.0003,2]
[311161796,1704948640761,-409.88428547,0.0003,2]
[311161797,1704948640772,-501.00894022,0.0003,2]
[311161798,1704948640782,-4452.61455502,0.0003,4]
[311161799,1704948640793,-300.0,0.0003,4]
[311161800,1704948640803,-2448.05627337,0.0003,2]
[311161801,1704948640814,-200.0,0.0003,2]
[311161802,1704948640824,-734.76379061,0.0003,4]
[311161803,1704948640834,-2794.48662757,0.0003,4]
[311161804,1704948640846,-200.0,0.0003,4]
[311161805,1704948640856,-229.0,0.0003,2]
[311161806,1704948640867,-38379.93475574,0.00030036,3]
[311161807,1704948640877,-2000.0,0.000301,2]
[311161808,1704948640888,-23816.9487729,0.00030104,4]
[311161809,1704948640898,-2000.0,0.0003011,2]
[311161810,1704948640909,-2000.0,0.0003012,2]
[311161811,1704948640920,-2000.0,0.0003013,2]
[311161812,1704948640930,-281.99,0.00030135,2]
[311161813,1704948640940,-281.99,0.00030135,2]
[311161814,1704948640951,-281.99,0.00030135,2]
[311161815,1704948640962,-281.99,0.00030135,2]
[311161816,1704948640973,-281.99,0.00030135,2]
[311161818,1704948640983,-281.99,0.00030135,2]
[311161819,1704948641111,-281.99,0.00030135,2]
[311161820,1704948641122,-281.99,0.00030135,2]
[311161821,1704948641131,-281.99,0.00030135,2]
[311161822,1704948641141,-281.99,0.00030135,2]
[311161823,1704948641150,-500.0,0.00030136,2]
[311161824,1704948641159,-500.0,0.00030136,2]
[311161825,1704948641168,-500.0,0.00030136,2]
[311161826,1704948641177,-500.0,0.00030136,2]
[311161827,1704948641186,-510.53781387,0.00030136,2]
[311161828,1704948641195,-500.0,0.00030136,2]
[311161829,1704948641205,-500.0,0.00030136,2]
[311161830,1704948641214,-500.0,0.00030136,2]